{"text_format":"1","workbook":"xlsx","n_sheets":1,"sheets":["Лист1"],"not_rendered":{"charts":0,"images":0,"macros":1,"external_links":0,"defined_names":0,"comments":0,"pivot_tables":0},"unopened":[],"bounds":{"document_bytes":16777216,"sheet_cells":100000,"rows_first":2000,"rows_last":500,"rows_between":2000,"halvings":0,"cell_chars":16384,"cell_head_chars":4096},"cells_cut":0,"cells_raw":0,"read":"whole","date_system":"1900"}

{"sheet":"Лист1","index":0,"n_rows":14,"n_cols":5,"rows_kept":14,"cut":false,"hidden":false,"merged":[]}
["[c magenta][b] [trn] shove[/trn][/b][/c] /ʃʌv/[c green] \\[transitive verb\\][/c][i][c maroon] informal[/c][/i] |толкать; запихивать; набивать, начинять;|[/m]",{"$f":"Beazehuginn($A1,COLUMN(A1))","v":" shove"},{"$f":"Beazehuginn($A1,COLUMN(B1))","v":" /ʃʌv/"},"толкать; запихивать; набивать, начинять;",""]
["[c magenta][b] [trn] hustle[/trn][/b][/c] /ˈhʌs[i]ə[/i]l/[c green] \\[transitive verb\\][/c] |хитрость, уловка; толкать, пихать;|[/m]",{"$f":"Beazehuginn($A2,COLUMN(A2))","v":" hustle"}," /ˈhʌs[i]ə[/i]l/","хитрость, уловка; толкать, пихать;",""]
["[c magenta][b] [trn] bundle[/trn][/b][/c] /ˈbʌndl/[c green] \\[transitive verb\\][/c] |узел; собранные в тесную группу вещи: узелок, пачка, связка, пучок;| [url]https://getyarn.io/yarn-clip/8286aeda-691e-4b98-a210-067547d265c0[/url][/m]",{"$f":"Beazehuginn($A3,COLUMN(A3))","v":" bundle"}," /ˈbʌndl/","узел; собранные в тесную группу вещи: узелок, пачка, связка, пучок;","https://getyarn.io/yarn-clip/8286aeda-691e-4b98-a210-067547d265c0"]
["[c magenta][b] [trn] manhandle[/trn][/b][/c] /ˈmænhændl/[c green] \\[transitive verb\\][/c] |избивать; передвигать в ручную;|",{"$f":"Beazehuginn($A4,COLUMN(A4))","v":" manhandle"}," /ˈmænhændl/","избивать; передвигать в ручную;",""]
["[c magenta][b] [trn] nudge[/trn][/b][/c] /nʌdʒ/[c green] \\[transitive verb\\][/c] |подталкивать локтем; п наводить на мысль;|[/m]",{"$f":"Beazehuginn($A5,COLUMN(A5))","v":" nudge"}," /nʌdʒ/","подталкивать локтем; п наводить на мысль;",""]
["[c magenta][b] [trn] nudge[/trn][/b][/c] /nʌdʒ/[c green] \\[transitive verb\\][/c] |подталкивать локтем; п наводить на мысль;|[/m]",{"$f":"Beazehuginn($A6,COLUMN(A6))","v":" nudge"}," /nʌdʒ/","подталкивать локтем; п наводить на мысль;",""]
["[c magenta][b] [trn] poke[/trn][/b][/c] /pəʊk/[c green] \\[transitive verb\\][/c] |тыкать(пальцем); мешать угли;|[/m]",{"$f":"Beazehuginn($A7,COLUMN(A7))","v":" poke"}," /pəʊk/","тыкать(пальцем); мешать угли;",""]
["[c magenta][b] [trn] prod[/trn][/b][/c] /prɒdǁprɑːd/[c green] \\[transitive verb\\][/c] |тыкать, колоть; побуждать;|[/m]",{"$f":"Beazehuginn($A8,COLUMN(A8))","v":" prod"}," /prɒdǁprɑːd/","тыкать, колоть; побуждать;",""]
["[c magenta][b] [trn] stuff/shove[/trn][/b][/c] /stʌf, ʃʌv/[c green] \\[transitive verb\\][/c][i][c maroon] informal[/c][/i] |набивать, начинять/толкать; запихивать;|[/m]",{"$f":"Beazehuginn($A9,COLUMN(A9))","v":" stuff/shove"}," /stʌf, ʃʌv/","набивать, начинять/толкать; запихивать;",""]
["[c magenta][b] [trn] ram[/trn][/b][/c] /ræm/[c green] \\[transitive verb\\][/c] |баран; таранить; вколачивать, вдабливать, утрамбовывать;|[/m]",{"$f":"Beazehuginn($A10,COLUMN(A10))","v":" ram"}," /ræm/","баран; таранить; вколачивать, вдабливать, утрамбовывать;",""]
["[c magenta][b] [trn] plunge[/trn][/b][/c] /plʌndʒ/[c green] \\[transitive verb\\][/c] |погружать, окунать; резко падать;| [/m]",{"$f":"Beazehuginn($A11,COLUMN(A11))","v":" plunge"}," /plʌndʒ/","погружать, окунать; резко падать;",""]
["[c magenta][b] [trn] barge[/trn][/b][/c] /bɑːʳdʒ/[c green] \\[intransitive verb\\][/c] |проталкиваться мимо/ сквозь/вперед и т.д.;| [url]https://getyarn.io/yarn-clip/4f8411fe-18d7-4dd2-824a-9cef1b2f8553[/url][/m]",{"$f":"Beazehuginn($A12,COLUMN(A12))","v":" barge"}," /bɑːʳdʒ/","проталкиваться мимо/ сквозь/вперед и т.д.;","https://getyarn.io/yarn-clip/4f8411fe-18d7-4dd2-824a-9cef1b2f8553"]
["[c magenta][b] [trn] jostle[/trn][/b][/c] /ˈdʒɒs[i]ə[/i]lǁˈdʒɑː-/[c green] \\[intransitive/transitive verb\\][/c] |проталкиваться;| [url]https://getyarn.io/yarn-clip/739793c8-56fe-4b01-9d5d-c2fa612cad68[/url][/m]",{"$f":"Beazehuginn($A13,COLUMN(A13))","v":" jostle"}," /ˈdʒɒs[i]ə[/i]lǁˈdʒɑː-/","проталкиваться;","https://getyarn.io/yarn-clip/739793c8-56fe-4b01-9d5d-c2fa612cad68"]
["[c magenta][b] [trn] barge[/trn][/b][/c] /bɑːʳdʒ/[c green] \\[intransitive verb\\][/c] |проталкиваться мимо/ сквозь/вперед и т.д.;| [url]https://getyarn.io/yarn-clip/4f8411fe-18d7-4dd2-824a-9cef1b2f8553[/url][/m]",{"$f":"Beazehuginn($A14,COLUMN(A14))","v":" barge"}," /bɑːʳdʒ/","проталкиваться мимо/ сквозь/вперед и т.д.;","https://getyarn.io/yarn-clip/4f8411fe-18d7-4dd2-824a-9cef1b2f8553"]